fUST/lending_fUST_20250606
["ID","MTS","AMOUNT","RATE_DAILY","PERIOD"]
[364577368,1749148148019,-2.59936706,0.00019178,2]
[364577369,1749148148039,-440.0,0.00019178,2]
[364577370,1749148148060,-390.0,0.00019178,2]
[364577371,1749148148081,-430.0,0.00019178,2]
[364577372,1749148148113,-440.0,0.00019178,2]
[364577373,1749148148136,-440.0,0.00019178,2]
[364577374,1749148148156,-448.39040511,0.00019178,2]
[364577375,1749148148182,-395.52,0.00019178,2]
[364577376,1749148148212,-440.0,0.00019178,2]
[364577377,1749148148236,-440.0,0.00019178,2]
[364577378,1749148148257,-430.0,0.00019178,2]
[364577379,1749148148279,-2924.7,0.00019178,2]
[364577380,1749148148301,-440.0,0.00019178,2]
[364577381,1749148148324,-440.0,0.00019178,2]
[364577382,1749148148348,-440.0,0.00019178,2]
[364577383,1749148148369,-420.0,0.00019178,2]
[364577384,1749148148392,-410.0,0.00019178,2]
[364577385,1749148148414,-440.0,0.00019178,2]
[364577386,1749148148438,-440.0,0.00019178,2]
[364577387,1749148148462,-443.84,0.00019178,2]
[364577388,1749148148486,-563.91,0.00019178,2]
[364577389,1749148148508,-440.0,0.00019178,2]
[364577390,1749148148531,-440.0,0.00019178,2]
[364577391,1749148148553,-440.0,0.00019178,2]
[364577392,1749148148574,-345.89828228,0.00019178,2]
[364577393,1749148148596,-440.0,0.00019178,2]
[364577394,1749148148619,-440.0,0.00019178,2]
[364577395,1749148148641,-350.0,0.00019178,2]
[364577396,1749148148666,-440.0,0.00019178,2]
[364577397,1749148148687,-440.0,0.00019178,2]
[364577398,1749148148710,-440.0,0.00019178,2]
[364577399,1749148148731,-430.0,0.00019178,2]
[364577400,1749148148753,-189.042417,0.00019178,2]
[364577401,1749148148781,-877.90599536,0.00019314,2]
[364577402,1749148148801,-212.94059491,0.00019434,2]
[364577403,1749148148822,-423.7637613,0.00019434,2]
[364577404,1749148148848,-410.0,0.00019452,2]
[364577405,1749148148869,-176.15791799,0.00019452,2]
[364577406,1749148148892,-440.0,0.00019452,2]
[364577407,1749148148913,-400.0,0.00019452,2]
[364577408,1749148148935,-440.0,0.00019452,2]
[364577409,1749148148956,-173.19,0.00019452,2]
[364577410,1749148148977,-420.0,0.00019452,2]
[364577411,1749148148996,-390.0,0.00019452,2]
[364577412,1749148149017,-430.0,0.00019452,2]
[364577413,1749148149038,-400.0,0.00019452,2]
[364577414,1749148149058,-430.0,0.00019452,2]
[364577415,1749148149078,-387.16,0.00019452,2]
[364577416,1749148149099,-397.39603436,0.00019452,2]
[364577417,1749148149120,-360.0,0.00019452,2]
[364577418,1749148149142,-440.0,0.00019452,2]
[364577419,1749148149165,-440.0,0.00019452,2]
[364577420,1749148149188,-2924.7,0.00019452,2]
[364577421,1749148149212,-440.0,0.00019452,2]
[364577422,1749148149234,-440.0,0.00019452,2]
[364577423,1749148149257,-440.0,0.00019452,2]
[364577424,1749148149278,-410.0,0.00019452,2]
[364577425,1749148149301,-440.0,0.00019452,2]
[364577426,1749148149325,-443.84,0.00019452,2]
[364577427,1749148149349,-563.91,0.00019452,2]
[364577428,1749148149371,-430.0,0.00019452,2]
[364577429,1749148149394,-440.0,0.00019452,2]
[364577430,1749148149416,-440.0,0.00019452,2]
[364577431,1749148149440,-440.0,0.00019452,2]
[364577432,1749148149463,-440.0,0.00019452,2]
[364577433,1749148149486,-440.0,0.00019452,2]
[364577434,1749148149507,-323.62160747,0.00019452,2]
[364577435,1749148149528,-440.0,0.00019452,2]
[364577436,1749148149549,-160.0,0.0001951,2]
[364577437,1749148149572,-160.0,0.0001951,2]
[364577438,1749148149600,-877.90599536,0.00019521,2]
[364577439,1749148149623,-410.0,0.00019726,2]
[364577440,1749148149644,-440.0,0.00019726,2]
[364577441,1749148149670,-440.0,0.00019726,2]
[364577442,1749148149795,-440.0,0.00019726,2]
[364577443,1749148149821,-2924.7,0.00019726,2]
[364577444,1749148149850,-440.0,0.00019726,2]
[364577445,1749148149874,-440.0,0.00019726,2]
[364577446,1749148149899,-440.0,0.00019726,2]
[364577447,1749148149925,-440.0,0.00019726,2]
[364577448,1749148149949,-563.91,0.00019726,2]
[364577449,1749148149972,-440.0,0.00019726,2]
[364577450,1749148149994,-440.0,0.00019726,2]
[364577451,1749148150018,-443.84,0.00019726,2]
[364577452,1749148150041,-440.0,0.00019726,2]
[364577453,1749148150081,-440.0,0.00019726,2]
[364577454,1749148150116,-440.0,0.00019726,2]
[364577455,1749148150144,-440.0,0.00019726,2]
[364577456,1749148150173,-877.90599536,0.00019728,2]
[364577457,1749148150196,-299.414,0.00019905,2]
[364577458,1749148150225,-877.90599536,0.00019934,2]
[364577459,1749148150248,-466.8,0.0001999,3]
[364577460,1749148150271,-700.25,0.0001999,3]
[364577461,1749148150292,-440.0,0.0002,2]
[364577462,1749148150315,-558.24,0.0002,2]
[364577463,1749148150337,-318.76,0.0002,2]
[364577464,1749148150360,-2924.7,0.0002,2]
[364577465,1749148150384,-440.0,0.0002,2]
[364577466,1749148150408,-440.0,0.0002,2]
[364577467,1749148150432,-440.0,0.0002,2]
[364577468,1749148150457,-440.0,0.0002,2]
[364577469,1749148150481,-563.91,0.0002,2]
[364577470,1749148150505,-440.0,0.0002,2]
[364577471,1749148150526,-440.0,0.0002,2]
[364577472,1749148150551,-443.84,0.0002,2]
[364577473,1749148150573,-440.0,0.0002,2]
[364577474,1749148150596,-440.0,0.0002,2]
[364577475,1749148150616,-2953.71311331,0.0002,2]
[364577476,1749148150639,-440.0,0.0002,2]
[364577477,1749148150662,-440.0,0.0002,2]
[364577478,1749148150689,-877.90599536,0.00020141,2]
[364577479,1749148150710,-151.71089825,0.00020229,2]
[364577480,1749148150733,-440.0,0.00020273,2]
[364577481,1749148150758,-2924.7,0.00020273,2]
[364577482,1749148150781,-440.0,0.00020273,2]
[364577483,1749148150804,-440.0,0.00020273,2]
[364577484,1749148150829,-440.0,0.00020273,2]
[364577485,1749148150856,-440.0,0.00020273,2]
[364577486,1749148150880,-563.91,0.00020273,2]
[364577487,1749148150902,-440.0,0.00020273,2]
[364577488,1749148150924,-440.0,0.00020273,2]
[364577489,1749148150946,-443.84,0.00020273,2]
[364577490,1749148150967,-440.0,0.00020273,2]
[364577491,1749148150987,-440.0,0.00020273,2]
[364577492,1749148151008,-440.0,0.00020273,2]
[364577493,1749148151030,-440.0,0.00020273,2]
[364577494,1749148151055,-877.90599536,0.00020348,3]
[364577495,1749148151075,-500.0,0.00020488,2]
[364577496,1749148151096,-993.01,0.00020496,2]
[364577497,1749148151117,-2924.7,0.00020547,2]
[364577498,1749148151140,-440.0,0.00020547,2]
[364577499,1749148151161,-156.22,0.00020547,2]
[364577500,1749148151184,-440.0,0.00020547,2]
[364577501,1749148151215,-440.0,0.00020547,2]
[364577502,1749148151240,-563.91,0.00020547,2]
[364577503,1749148151262,-440.0,0.00020547,2]
[364577504,1749148151286,-87.90465375,0.00020547,2]
[364577505,1749148152102,-430.0,0.00018356,2]
[364577506,1749148152126,-352.09534625,0.00020547,2]
[364577507,1749148152149,-443.84,0.00020547,2]
[364577508,1749148152170,-461.18,0.00020547,2]
[364577509,1749148152192,-440.0,0.00020547,2]
[364577510,1749148152216,-440.0,0.00020547,2]
[364577511,1749148152238,-440.0,0.00020547,2]
[364577512,1749148152265,-877.90599536,0.00020555,3]
[364577513,1749148152286,-1253.45,0.000206,2]
[364577514,1749148152306,-2226.09,0.000206,2]
[364577515,1749148152333,-877.90599536,0.00020762,3]
[364577516,1749148152354,-500.0,0.0002082,2]
[364577517,1749148152376,-500.0,0.0002082,2]
[364577518,1749148152396,-500.0,0.0002082,2]
[364577519,1749148152417,-380.91974936,0.0002082,2]
[364577520,1749148152438,-500.0,0.0002082,2]
[364577521,1749148152459,-500.0,0.0002082,2]
[364577522,1749148152481,-500.0,0.0002082,2]
[364577523,1749148152502,-422.67255189,0.0002082,2]
[364577524,1749148152528,-500.0,0.0002082,2]
[364577525,1749148152562,-500.0,0.0002082,2]
[364577526,1749148152588,-267.97049397,0.0002082,2]
[364577527,1749148152610,-500.0,0.0002082,2]
[364577528,1749148152632,-500.0,0.0002082,2]
[364577529,1749148152653,-500.0,0.0002082,2]
[364577530,1749148152673,-254.20970362,0.0002082,2]
[364577531,1749148152697,-500.0,0.0002082,2]
[364577532,1749148152717,-500.0,0.0002082,2]
[364577533,1749148152738,-500.0,0.0002082,2]
[364577534,1749148152759,-500.0,0.0002082,2]
[364577535,1749148152778,-639.42062154,0.0002082,2]
[364577536,1749148152799,-500.0,0.0002082,2]
[364577537,1749148152819,-500.0,0.0002082,2]
[364577538,1749148152847,-500.0,0.0002082,2]
[364577539,1749148152868,-500.0,0.0002082,2]
[364577540,1749148152890,-500.0,0.0002082,2]
[364577541,1749148152911,-500.0,0.0002082,2]
[364577542,1749148152934,-500.0,0.0002082,2]
[364577543,1749148152955,-500.0,0.0002082,2]
[364577544,1749148152976,-500.0,0.0002082,2]
[364577545,1749148152997,-500.0,0.0002082,2]
[364577546,1749148153018,-500.0,0.0002082,2]
[364577547,1749148153039,-500.0,0.0002082,2]
[364577548,1749148153059,-500.0,0.0002082,2]
[364577549,1749148153080,-500.0,0.0002082,2]
[364577550,1749148153101,-500.0,0.0002082,2]
[364577551,1749148153122,-500.0,0.0002082,2]
[364577552,1749148153143,-500.0,0.0002082,2]
[364577553,1749148153164,-500.0,0.0002082,2]
[364577554,1749148153188,-500.0,0.0002082,2]
[364577555,1749148153209,-488.42381071,0.0002082,2]
[364577556,1749148153233,-500.0,0.0002082,2]
[364577557,1749148153255,-2924.7,0.00020821,2]
[364577558,1749148153278,-440.0,0.00020821,2]
[364577559,1749148153301,-440.0,0.00020821,2]
[364577560,1749148153325,-440.0,0.00020821,2]
[364577561,1749148153348,-563.91,0.00020821,2]
[364577562,1749148153371,-440.0,0.00020821,2]
[364577563,1749148153394,-440.0,0.00020821,2]
[364577564,1749148153418,-443.84,0.00020821,2]
[364577565,1749148153441,-457.24,0.00020821,2]
[364577566,1749148153464,-440.0,0.00020821,2]
[364577567,1749148153489,-563.98,0.00020821,2]
[364577568,1749148153517,-877.90599536,0.00020969,4]
[364577569,1749148153537,-52134.1418511,0.00021,2]
[364577570,1749148160208,-296.54104373,0.00018356,2]
[364577571,1749148167118,-93.45895627,0.00018356,2]
[364577572,1749148167143,-1706.07,0.00018356,2]
[364577573,1749148167165,-430.0,0.00018356,2]
[364577574,1749148167188,-1706.07,0.0001863,2]
[364577575,1749148167213,-1706.07,0.00018904,2]
[364577576,1749148167234,-1706.07,0.00019178,2]
[364577577,1749148167257,-1706.07,0.00019452,2]
[364577578,1749148167279,-1706.07,0.00019726,2]
[364577579,1749148167301,-1706.07,0.0002,2]
[364577580,1749148167323,-1706.07,0.00020273,2]
[364577581,1749148167345,-1706.07,0.00020547,2]
[364577582,1749148167369,-1706.07,0.00020821,2]
[364577583,1749148167391,-1548.37181215,0.00021,2]
[364577584,1749148167415,-440.0,0.00021095,2]
[364577585,1749148167438,-440.0,0.00021095,2]
[364577586,1749148167460,-440.0,0.00021095,2]
[364577587,1749148167483,-563.91,0.00021095,2]
[364577588,1749148167506,-440.0,0.00021095,2]
[364577589,1749148167527,-440.0,0.00021095,2]
[364577590,1749148167548,-443.84,0.00021095,2]
[364577591,1749148167573,-440.0,0.00021095,2]
[364577592,1749148167596,-1706.07,0.00021095,2]
[364577593,1749148167622,-877.90599536,0.00021176,4]
[364577594,1749148167641,-16655.95,0.000212,2]
[364577595,1749148167662,-440.0,0.00021369,2]
[364577596,1749148167683,-440.0,0.00021369,2]
[364577597,1749148167704,-440.0,0.00021369,2]
[364577598,1749148167726,-563.91,0.00021369,2]
[364577599,1749148167747,-440.0,0.00021369,2]
[364577600,1749148167769,-440.0,0.00021369,2]
[364577601,1749148167791,-443.84,0.00021369,2]
[364577602,1749148167812,-440.0,0.00021369,2]
[364577603,1749148167833,-1706.07,0.00021369,2]
[364577604,1749148167859,-877.90599536,0.00021383,5]
[364577605,1749148167882,-877.90599536,0.0002159,5]
[364577606,1749148167905,-440.0,0.00021643,2]
[364577607,1749148167929,-513.8,0.00021643,2]
[364577608,1749148167952,-440.0,0.00021643,2]
[364577609,1749148167975,-563.91,0.00021643,2]
[364577610,1749148167996,-440.0,0.00021643,2]
[364577611,1749148168017,-440.0,0.00021643,2]
[364577612,1749148168039,-443.84,0.00021643,2]
[364577613,1749148168061,-382.22,0.00021643,2]
[364577614,1749148168083,-1436.96992833,0.00021643,2]
[364577679,1749148232134,-294.89,0.00017122,2]
[364577684,1749148232144,-294.91963883,0.00018345,2]
[364577687,1749148232153,-525.67727014,0.00018356,2]
[364577691,1749148232163,-231.2784719,0.00018356,2]
[364577785,1749148237960,-208.7215281,0.00018356,2]
[364577787,1749148237970,-440.0,0.00018356,2]
[364577789,1749148237979,-440.0,0.00018356,2]
[364577791,1749148237988,-430.0,0.00018356,2]
[364577793,1749148237997,-440.0,0.00018356,2]
[364577795,1749148238007,-430.0,0.00018356,2]
[364577797,1749148238016,-430.0,0.00018356,2]
[364577799,1749148238024,-324.72020936,0.00018356,2]
[364577893,1749148245941,-115.27979064,0.00018356,2]
[364577894,1749148245953,-440.0,0.00018356,2]
[364577895,1749148245964,-440.0,0.00018356,2]
[364577896,1749148245975,-302.06786946,0.00018356,2]
[364577897,1749148245985,-440.0,0.00018356,2]
[364577898,1749148245996,-440.0,0.00018356,2]
[364577899,1749148246008,-400.0,0.00018356,2]
[364577900,1749148246018,-440.0,0.00018356,2]
[364577901,1749148246029,-410.0,0.00018356,2]
[364577902,1749148246039,-430.0,0.00018356,2]
[364577903,1749148246050,-430.0,0.00018356,2]
[364577904,1749148246061,-440.0,0.00018356,2]
[364577905,1749148246072,-440.0,0.00018356,2]
[364577906,1749148246083,-500.0,0.00018356,2]
[364577907,1749148246094,-440.0,0.00018356,2]
[364577908,1749148246105,-440.0,0.00018356,2]
[364577909,1749148246116,-510.85617009,0.00018356,2]
[364577910,1749148246126,-440.0,0.00018356,2]
[364577911,1749148246137,-430.0,0.00018356,2]
[364577912,1749148246147,-440.0,0.00018356,2]
[364577913,1749148246158,-440.0,0.0001863,2]
[364577914,1749148246169,-440.0,0.0001863,2]
[364577915,1749148246179,-430.0,0.0001863,2]
[364577916,1749148246190,-430.0,0.0001863,2]
[364577917,1749148246201,-440.0,0.0001863,2]
[364577918,1749148246214,-440.0,0.0001863,2]
[364577919,1749148246225,-440.0,0.0001863,2]
[364577920,1749148246236,-440.0,0.0001863,2]
[364577921,1749148246246,-440.0,0.0001863,2]
[364577922,1749148246256,-440.0,0.0001863,2]
[364577923,1749148246267,-589.79,0.00018679,2]
[364577924,1749148246278,-440.0,0.00018904,2]
[364577925,1749148246293,-440.0,0.00018904,2]
[364577926,1749148246306,-440.0,0.00018904,2]
[364577927,1749148246318,-440.0,0.00018904,2]
[364577928,1749148246329,-440.0,0.00018904,2]
[364577929,1749148246341,-440.0,0.00018904,2]
[364577930,1749148246353,-440.0,0.00018904,2]
[364577931,1749148246366,-440.0,0.00019178,2]
[364577932,1749148246377,-440.0,0.00019178,2]
[364577933,1749148246388,-440.0,0.00019178,2]
[364577934,1749148246399,-440.0,0.00019178,2]
[364577935,1749148246411,-440.0,0.00019178,2]
[364577936,1749148246423,-440.0,0.00019178,2]
[364577937,1749148246435,-440.0,0.00019178,2]
[364577938,1749148246446,-440.0,0.00019452,2]
[364577939,1749148246457,-440.0,0.00019452,2]
[364577940,1749148246468,-440.0,0.00019452,2]
[364577941,1749148246480,-440.0,0.00019452,2]
[364577942,1749148246491,-440.0,0.00019452,2]
[364577943,1749148246502,-440.0,0.00019452,2]
[364577944,1749148246514,-269.28,0.00019452,2]
[364577945,1749148246526,-440.0,0.00019726,2]
[364577946,1749148246537,-440.0,0.00019726,2]
[364577948,1749148246548,-323.13600499,0.00019726,2]
[364577950,1749148246560,-440.0,0.00019726,2]
[364577951,1749148246571,-440.0,0.00019726,2]
[364577953,1749148246583,-440.0,0.00019726,2]
[364577954,1749148246595,-440.0,0.0002,2]
[364577955,1749148246606,-440.0,0.0002,2]
[364577957,1749148246618,-440.0,0.0002,2]
[364577958,1749148246629,-440.0,0.0002,2]
[364577960,1749148246640,-440.0,0.0002,2]
[364577962,1749148246651,-884.68,0.00020236,2]
[364577963,1749148246662,-440.0,0.00020273,2]
[364577965,1749148246674,-440.0,0.00020273,2]
[364577969,1749148246809,-440.0,0.00020273,2]
[364577970,1749148246824,-440.0,0.00020273,2]
[364577971,1749148246834,-440.0,0.00020273,2]
[364577972,1749148246843,-500.0,0.00020488,2]
[364577973,1749148246853,-451.88,0.00020547,2]
[364577974,1749148246863,-440.0,0.00020547,2]
[364577975,1749148246873,-216.14,0.00020547,2]
[364577976,1749148246883,-440.0,0.00020547,2]
[364577977,1749148246892,-440.0,0.00020547,2]
[364577978,1749148246901,-440.0,0.00020821,2]
[364577979,1749148246912,-440.0,0.00020821,2]
[364577980,1749148246921,-482.42,0.00021095,2]
[364577981,1749148246931,-440.0,0.00021095,2]
[364577982,1749148246940,-440.0,0.00021369,2]
[364577983,1749148246951,-269.10007167,0.00021643,2]
[364577984,1749148246960,-440.0,0.00021643,2]
[364577985,1749148246969,-1179.58,0.00021792,2]
[364577986,1749148246978,-430.0,0.00021796,2]
[364577987,1749148246987,-440.0,0.00021796,2]
[364577988,1749148246996,-877.90599536,0.00021797,6]
[364577989,1749148247006,-563.91,0.00021917,2]
[364577990,1749148247015,-541.74,0.00021917,2]
[364577991,1749148247024,-1706.07,0.00021917,2]
[364577992,1749148247034,-842.5625,0.00021917,2]
[364577993,1749148247043,-229.48950782,0.00021917,2]
[364577994,1749148247053,-160.0,0.00021917,2]
[364577995,1749148247062,-440.0,0.00021917,2]
[364577996,1749148247071,-177.0,0.00022,2]
[364577997,1749148247080,-5318.41188946,0.00022,2]
[364577998,1749148247089,-877.90599536,0.00022003,6]
[364577999,1749148247099,-563.91,0.00022191,2]
[364578000,1749148247108,-1706.07,0.00022191,2]
[364578001,1749148247117,-440.0,0.00022191,2]
[364578002,1749148247127,-2226.09,0.000222,7]
[364578003,1749148247136,-151.71089825,0.00022203,2]
[364578004,1749148247145,-877.90599536,0.0002221,6]
[364578005,1749148247154,-1529.01,0.000224,2]
[364578006,1749148247163,-567.40554188,0.00022417,7]
[364578007,1749148247264,-310.50045348,0.00022417,7]
[364578008,1749148247274,-563.91,0.00022465,2]
[364578009,1749148247283,-1706.07,0.00022465,2]
[364578010,1749148247293,-440.0,0.00022465,2]
[364578011,1749148247302,-424.95,0.0002258,10]
[364578012,1749148247312,-810.36,0.0002258,10]
[364578013,1749148247323,-675.3,0.0002258,10]
[364578014,1749148247333,-562.75,0.0002258,10]
[364578015,1749148247342,-278406.0,0.0002259,2]
[364578016,1749148247351,-1002.76,0.000226,7]
[364578017,1749148247361,-303.21039133,0.00022602,2]
[364578018,1749148247371,-207.4,0.00022605,2]
[364578019,1749148247380,-877.90599536,0.00022624,7]
[364578020,1749148247389,-440.0,0.00022679,2]
[364578021,1749148247399,-440.0,0.00022679,2]
[364578022,1749148247409,-440.0,0.00022679,2]
[364578023,1749148247419,-292.47669009,0.00022679,2]
[364578024,1749148247428,-440.0,0.00022679,2]
[364578025,1749148247438,-440.0,0.00022679,2]
[364578026,1749148247447,-440.0,0.00022679,2]
[364578027,1749148247457,-366.44811244,0.00022679,2]
[364578028,1749148247466,-430.0,0.00022679,2]
[364578029,1749148247476,-430.0,0.00022679,2]
[364578030,1749148247486,-440.0,0.00022679,2]
[364578031,1749148247495,-440.0,0.00022679,2]
[364578032,1749148247504,-440.0,0.00022679,2]
[364578033,1749148247515,-440.0,0.00022679,2]
[364578034,1749148247524,-440.0,0.00022679,2]
[364578035,1749148247534,-440.0,0.00022679,2]
[364578036,1749148247544,-440.0,0.00022679,2]
[364578037,1749148247553,-440.0,0.00022679,2]
[364578038,1749148247563,-440.0,0.00022679,2]
[364578039,1749148247572,-291.18017293,0.00022679,2]
[364578040,1749148247582,-430.0,0.00022679,2]
[364578041,1749148247592,-440.0,0.00022679,2]
[364578042,1749148247601,-440.0,0.00022679,2]
[364578043,1749148247610,-430.0,0.00022679,2]
[364578044,1749148247620,-440.0,0.00022679,2]
[364578045,1749148247629,-410.0,0.00022679,2]
[364578046,1749148247639,-430.0,0.00022679,2]
[364578047,1749148247648,-400.0,0.00022679,2]
[364578048,1749148247657,-360.0,0.00022679,2]
[364578049,1749148247667,-430.0,0.00022679,2]
[364578050,1749148247676,-440.0,0.00022679,2]
[364578051,1749148247685,-440.0,0.00022679,2]
[364578052,1749148247694,-440.0,0.00022679,2]
[364578053,1749148247704,-430.0,0.00022679,2]
[364578054,1749148247714,-430.0,0.00022679,2]
[364578055,1749148247723,-440.0,0.00022679,2]
[364578056,1749148247732,-355.15836169,0.00022679,2]
[364578057,1749148247742,-430.0,0.00022679,2]
[364578058,1749148247751,-151.0,0.00022679,2]
[364578059,1749148247761,-151.0,0.00022679,2]
[364578060,1749148247770,-154.00667859,0.00022679,2]
[364578061,1749148247779,-153.75203831,0.00022679,2]
[364578062,1749148247789,-151.82357693,0.00022679,2]
[364578063,1749148247798,-500.0,0.0002268,2]
[364578064,1749148247807,-151.0,0.00022706,2]
[364578065,1749148247817,-151.0,0.00022706,2]
[364578066,1749148247826,-168.852059,0.00022712,2]
[364578067,1749148247836,-151.0,0.00022734,2]
[364578068,1749148247846,-151.0,0.00022734,2]
[364578069,1749148247856,-563.91,0.00022739,2]
[364578070,1749148247866,-1706.07,0.00022739,2]
[364578071,1749148247878,-283.56,0.00022739,2]
[364578072,1749148247887,-151.0,0.00022761,2]
[364578073,1749148247897,-158.6675179,0.00022761,2]
[364578074,1749148247907,-207.48916409,0.00022789,2]
[364578075,1749148247917,-877.90599536,0.00022831,8]
[364578076,1749148247926,-500.0,0.00022952,2]
[364578077,1749148247935,-500.0,0.00022952,2]
[364578078,1749148247944,-160.0,0.00022952,2]
[364578079,1749148247956,-430.0,0.00022953,2]
[364578080,1749148247967,-440.0,0.00022953,2]
[364578081,1749148247977,-440.0,0.00022953,2]
[364578082,1749148247987,-440.0,0.00022953,2]
[364578083,1749148247996,-400.0,0.00022953,2]
[364578084,1749148248008,-440.0,0.00022953,2]
[364578085,1749148248018,-184.74404832,0.00022953,2]
[364578086,1749148248028,-440.0,0.00022953,2]
[364578087,1749148248041,-440.0,0.00022953,2]
[364578088,1749148248051,-440.0,0.00022953,2]
[364578089,1749148248060,-430.0,0.00022953,2]
[364578090,1749148248070,-420.0,0.00022953,2]
[364578091,1749148248079,-440.0,0.00022953,2]
[364578092,1749148248089,-371.67509405,0.00022953,2]
[364578093,1749148248098,-440.0,0.00022953,2]
[364578094,1749148248107,-440.0,0.00022953,2]
[364578095,1749148248117,-1000.0,0.00023,23]
[364578096,1749148248127,-1957.0576989,0.00023,2]
[364578097,1749148248136,-294.89,0.00023,7]
[364578098,1749148248146,-11978.36501454,0.00023,20]
[364578099,1749148248156,-563.91,0.00023013,2]
[364578100,1749148248166,-1706.07,0.00023013,2]
[364578101,1749148248176,-877.90599536,0.00023038,8]
[364578102,1749148248185,-200.62794978,0.00023108,7]
[364578103,1749148248195,-440.0,0.00023227,2]
[364578104,1749148248206,-420.0,0.00023227,2]
[364578105,1749148248215,-440.0,0.00023227,2]
[364578106,1749148248224,-420.0,0.00023227,2]
[364578107,1749148248234,-440.0,0.00023227,2]
[364578108,1749148248245,-440.0,0.00023227,2]
[364578109,1749148248254,-430.0,0.00023227,2]
[364578110,1749148248265,-440.0,0.00023227,2]
[364578111,1749148248274,-440.0,0.00023227,2]
[364578112,1749148248284,-440.0,0.00023227,2]
[364578113,1749148248294,-877.90599536,0.00023245,8]
[364578114,1749148248304,-563.91,0.00023287,2]
[364578115,1749148248313,-1706.07,0.00023287,2]
[364578116,1749148248323,-364.646625,0.00023315,2]
[364578117,1749148248332,-2225.0,0.00023335,2]
[364578118,1749148248342,-709.0,0.00023335,2]
[364578119,1749148248352,-405.0,0.00023335,2]
[364578120,1749148248362,-1474.47,0.00023349,2]
[364578121,1749148248371,-500.0,0.00023405,2]
[364578122,1749148248382,-216.9712955,0.00023425,2]
[364578123,1749148248392,-877.90599536,0.00023452,9]
[364578124,1749148248401,-217.1484714,0.00023452,2]
[364578125,1749148248411,-306.0,0.00023452,2]
[364578126,1749148248420,-153.0,0.00023452,2]
[364578127,1749148248430,-2226.09,0.000235,7]
[364578128,1749148248440,-440.0,0.00023501,2]
[364578129,1749148248450,-284.53,0.00023501,2]
[364578130,1749148248459,-440.0,0.00023501,2]
[364578131,1749148248469,-440.0,0.00023501,2]
[364578132,1749148248479,-340.0,0.00023501,2]
[364578133,1749148248488,-440.0,0.00023501,2]
[364578134,1749148248498,-440.0,0.00023501,2]
[364578135,1749148248508,-563.91,0.00023561,2]
[364578136,1749148248517,-1706.07,0.00023561,2]
[364578137,1749148248526,-4229.53369741,0.00023613,7]
[364578138,1749148248536,-877.90599536,0.00023659,9]
[364578139,1749148248545,-157.6829628,0.00023726,2]
[364578140,1749148248555,-153.0,0.00023726,2]
[364578141,1749148248564,-153.0,0.00023726,2]
[364578142,1749148248574,-153.0,0.00023726,2]
[364578143,1749148248583,-2659.21,0.00023772,8]